bitfinex-derivatives/quotes_ETHF0:USTF0_20250213
["timestamp","ask_amount","ask_price","bid_price","bid_amount"]
[1739423387040,0.00554129,2709.8,2709.2,0.00554129]
[1739423387247,0.73809,2709.3,2709.2,0.00554129]
[1739423387443,0.73807,2709.4,2709.2,0.00554129]
[1739423387642,3.2078,2709.6,2709.2,0.00554129]
[1739423387840,0.73809,2709.3,2709.2,0.00554129]
[1739423399260,3.94589,2709.3,2709.2,0.00554129]
[1739423399753,3.2078,2709.3,2708.4,4.33111429]
[1739423399957,0.73829,2708.6,2708.5,0.7383]
[1739423400257,3.2078,2709.0,2708.5,0.7383]
[1739423400457,0.73827,2708.7,2708.5,0.7383]
[1739423400758,0.73825,2708.7,2708.6,0.73826]
[1739423400960,0.73824,2708.8,2708.6,0.73826]
[1739423401159,3.2078,2709.3,2708.7,3.21361429]
[1739423401465,0.73818,2709.0,2708.8,0.73821]
[1739423401758,0.73821,2708.9,2708.7,3.95185429]
[1739423401955,3.2078,2709.3,2708.7,3.21361429]
[1739423402161,0.73817,2709.0,2708.7,3.95184429]
[1739423402365,0.73817,2709.0,2708.7,3.21361429]
[1739423402656,3.2078,2709.3,2708.8,0.73822]
[1739423402857,0.73818,2709.0,2708.8,0.73822]
[1739423403062,0.73818,2709.0,2708.7,3.21361429]
[1739423403361,0.7382,2708.9,2708.7,3.21361429]
[1739423403553,0.73819,2709.0,2708.7,3.21361429]
[1739423403753,0.73819,2709.0,2708.7,3.95186429]
[1739423404154,3.2078,2709.3,2708.7,3.21361429]
[1739423404460,3.2078,2709.6,2709.0,3.21361429]
[1739423404662,0.73813,2709.2,2709.1,1.1287]
[1739423404965,0.73813,2709.2,2709.1,41.9287]
[1739423405164,0.73811,2709.3,2709.1,41.9287]
[1739423405465,0.73811,2709.3,2709.1,1.86684]
[1739423405666,0.73811,2709.3,2709.1,1.1287]
[1739423406162,0.73811,2709.2,2709.1,1.1287]
[1739423407071,0.5654,2709.7,2709.1,1.1287]
[1739423407361,0.00554129,2709.8,2709.4,3.21361429]
[1739423407558,0.00554129,2709.8,2709.4,44.01361429]
[1739423407758,0.00554129,2709.8,2709.4,3.21361429]
[1739423407965,0.73803,2709.5,2709.4,3.21361429]
[1739423408158,0.738,2709.6,2709.4,3.21361429]
[1739423408363,0.73799,2709.7,2709.4,3.95166429]
[1739423408560,0.73803,2709.5,2709.4,3.21361429]
[1739423408956,0.73809,2709.3,2709.2,3.2078]
[1739423409459,0.73819,2708.9,2708.8,3.21361429]
[1739423409656,3.2078,2709.3,2708.8,3.21361429]
[1739423410160,0.73816,2709.1,2708.8,3.95182429]
[1739423410463,3.21334129,2709.8,2708.8,6.42141429]
[1739423410665,3.21334129,2709.8,2709.2,3.95171429]
[1739423410864,0.73805,2709.5,2709.2,3.95170429]
[1739423411160,3.21334129,2709.8,2708.9,3.21361429]
[1739423411161,1.84495,2709.7,2708.9,3.21361429]
[1739423411466,0.73817,2709.0,2708.9,3.21361429]
[1739423411762,0.73813,2709.2,2708.9,3.95179429]
[1739423411957,0.73813,2709.2,2709.0,1.31657]
[1739423412266,0.73811,2709.2,2709.0,1.31657]
[1739423412460,3.2078,2709.5,2709.0,0.5784]
[1739423412659,0.7381,2709.3,2709.0,1.89265]
[1739423413365,0.7381,2709.3,2709.1,0.73813]
[1739423413560,0.73806,2709.4,2709.2,0.73811]
[1739423413755,3.2078,2709.5,2709.2,3.21361429]
[1739423413954,3.2078,2709.5,2709.4,0.73806]
[1739423414162,0.73807,2709.4,2709.2,3.21361429]
[1739423414360,3.21334129,2709.8,2709.2,3.21361429]
[1739423414557,0.73804,2709.5,2709.2,4.94961429]
[1739423414765,0.73804,2709.5,2709.2,5.68770429]
[1739423415061,0.73804,2709.5,2709.2,4.94961429]
[1739423415367,0.73801,2709.6,2709.3,0.73807]
[1739423416065,0.73807,2709.4,2709.2,4.94961429]
[1739423416261,1.84495,2709.7,2709.0,1.1545]
[1739423416464,1.84495,2709.7,2707.7,5.05523167]
[1739423416465,3.2078,2709.4,2708.8,4.9418]
[1739423416767,0.73819,2709.0,2708.8,1.734]
[1739423416967,5.05299,2709.4,2708.8,1.734]
[1739423417263,0.73825,2708.7,2708.4,4.3477]
[1739423417464,1.84542,2709.0,2708.4,1.1399]
[1739423417766,0.73833,2708.4,2708.3,0.00554129]
[1739423422576,0.58,2708.4,2707.6,0.5513]
[1739423422873,0.73852,2707.7,2707.6,0.5513]
[1739423423069,0.73851,2707.8,2707.6,0.5513]
[1739423423263,3.2078,2708.2,2707.6,1.28983]
[1739423423566,0.73846,2708.0,2707.7,0.73852]
[1739423423869,0.73846,2708.0,2707.6,0.5513]
[1739423423870,0.73845,2708.0,2707.6,1.29538129]
[1739423424070,0.73845,2708.0,2707.7,0.73852]
[1739423424571,3.21334129,2708.2,2707.7,3.21361429]
[1739423424865,3.21334129,2708.2,2707.8,0.73849]
[1739423425168,0.73842,2708.1,2707.8,0.73849]
[1739423425366,0.73849,2707.8,2707.6,0.55684129]
[1739423425564,0.73849,2707.8,2707.6,0.00554129]
[1739423425771,3.2078,2707.8,2707.6,0.00554129]
[1739423425965,1.31492,2707.7,2707.6,0.00554129]
[1739423426870,1.89142,2707.7,2707.6,0.00554129]
[1739423427772,1.31492,2707.7,2707.6,0.00554129]
[1739423428371,0.73852,2707.7,2707.6,0.00554129]
[1739423428574,3.2078,2707.7,2707.6,0.00554129]
[1739423428761,3.94632,2707.7,2707.6,0.00554129]
[1739423435675,3.2078,2708.0,2707.6,0.00554129]
[1739423435872,0.73852,2707.7,2707.6,0.00554129]
[1739423437477,0.73845,2708.0,2707.6,0.00554129]
[1739423437676,0.00554129,2708.2,2707.8,3.21361429]
[1739423437875,0.73843,2708.1,2707.9,1.1373]
[1739423438083,0.73843,2708.1,2708.0,0.5663]
[1739423439378,0.73841,2708.1,2708.0,0.5663]
[1739423441583,0.73844,2708.0,2707.9,0.5739]
[1739423441878,0.73852,2707.7,2707.6,1.74154129]
[1739423442278,0.73852,2707.7,2707.6,0.00554129]
[1739423443174,0.73852,2707.8,2707.6,0.00554129]
[1739423443376,0.00554129,2708.2,2707.6,3.21334129]
[1739423443581,0.73844,2708.0,2707.9,3.21361429]
[1739423444880,0.00554129,2708.2,2707.6,3.21915558]
[1739423445483,0.73846,2708.0,2707.9,3.21361429]
[1739423445975,0.73841,2708.1,2707.9,3.21361429]
[1739423446185,0.73841,2708.1,2708.0,0.5755]
[1739423448083,0.00554129,2708.2,2707.6,3.21915558]
[1739423448376,0.73847,2707.9,2707.6,4.53318558]
[1739423448687,3.2078,2708.1,2707.6,3.79465558]
[1739423448877,0.73852,2707.7,2707.6,3.79465558]
[1739423449378,0.00554129,2708.2,2707.6,3.79465558]
[1739423449771,0.73852,2707.7,2707.6,3.79465558]
[1739423451986,1.85153129,2708.2,2707.6,3.79465558]
[1739423452179,0.00554129,2708.2,2707.6,3.79465558]
[1739423452371,0.73849,2707.9,2707.6,3.79465558]
[1739423452576,0.73852,2707.8,2707.6,3.79465558]
[1739423452776,0.00554129,2708.2,2707.6,3.79465558]
[1739423453179,0.00554129,2708.2,2707.8,0.73848]
[1739423453379,0.73844,2708.0,2707.8,0.73848]
[1739423453786,0.00554129,2708.2,2707.6,3.79465558]
[1739423454086,0.73848,2707.9,2707.7,0.73852]
[1739423454580,1.84604,2708.1,2707.6,3.79465558]
[1739423455185,0.7385,2707.8,2707.6,4.53319558]
[1739423455584,0.7385,2707.8,2707.6,3.79465558]
[1739423455786,0.00554129,2708.2,2707.6,3.79465558]
[1739423455981,0.73852,2707.7,2707.6,3.79465558]
[1739423456481,0.73848,2707.9,2707.7,0.73852]
[1739423456987,0.00554129,2708.2,2707.6,3.79465558]
[1739423457485,1.85154129,2708.2,2707.6,3.79465558]
[1739423457682,0.73852,2707.7,2707.6,3.79465558]
[1739423457989,0.00554129,2708.2,2707.6,7.00245558]
[1739423458193,0.73852,2707.7,2707.6,7.00245558]
[1739423458484,0.73841,2708.1,2707.8,0.73847]
[1739423458690,0.00554129,2708.2,2707.8,0.73847]
[1739423458888,0.73845,2708.0,2707.8,0.73847]
[1739423459285,0.00554129,2708.2,2707.6,7.00245558]
[1739423459687,0.73848,2707.9,2707.7,0.73851]
[1739423460188,0.73846,2708.0,2707.6,7.00245558]
[1739423460382,0.00554129,2708.2,2707.6,7.00245558]
[1739423460791,0.73852,2707.7,2707.6,7.00245558]
[1739423460986,0.00554129,2708.2,2707.6,7.00245558]
[1739423461188,0.73849,2707.9,2707.7,0.73852]
[1739423461491,0.00554129,2708.2,2707.6,7.00245558]
[1739423461692,0.73845,2708.0,2707.8,0.73848]
[1739423463491,0.73847,2707.9,2707.8,0.73848]
[1739423463691,0.73846,2708.0,2707.8,0.73848]
[1739423463886,0.00554129,2708.2,2707.6,3.79465558]
[1739423464093,0.73845,2708.0,2707.8,0.73847]
[1739423464492,1.85155129,2708.2,2707.6,7.00245558]
[1739423464688,0.73852,2707.7,2707.6,3.79465558]
[1739423464889,0.73852,2707.7,2707.6,0.00554129]
[1739423466891,3.2078,2708.1,2707.6,3.21915558]
[1739423467191,3.2078,2708.1,2707.8,0.73849]
[1739423467392,0.73843,2708.1,2707.8,0.73849]
[1739423467689,0.73844,2708.0,2707.8,0.73849]
[1739423468690,0.73844,2708.0,2707.7,0.5777]
[1739423468995,3.2078,2707.8,2707.6,0.00554129]
[1739423469191,0.73852,2707.7,2707.6,0.00554129]
[1739423469587,1.29602,2707.7,2707.6,0.00554129]
[1739423469989,0.5575,2707.7,2707.0,3.21361429]
[1739423470189,0.73871,2707.1,2706.9,1.147]
[1739423470388,3.2078,2707.5,2706.9,1.147]
[1739423470688,3.77916932,2707.5,2706.9,0.5777]
[1739423470886,3.77916932,2707.5,2706.9,1.31644]
[1739423471281,0.73864,2707.3,2707.1,0.73868]
[1739423471490,3.77916932,2707.5,2707.0,3.21361429]
[1739423471694,1.12886932,2707.7,2707.0,3.21361429]
[1739423471895,3.2078,2707.5,2707.0,3.21361429]
[1739423472190,0.73864,2707.3,2707.1,0.73868]
[1739423472490,0.73868,2707.2,2707.0,3.21361429]
[1739423472698,0.73866,2707.3,2707.0,3.95231429]
[1739423472889,0.73866,2707.3,2707.1,0.5874]
[1739423473397,0.5575,2707.7,2707.1,0.5874]
[1739423473690,4.51635403,2707.8,2707.5,0.73857]
[1739423474288,3.77784403,2707.8,2707.3,3.21361429]
[1739423474489,3.2078,2707.8,2707.3,3.21361429]
[1739423474689,0.73853,2707.7,2707.4,1.32088]
[1739423474988,0.73854,2707.7,2707.5,0.5434]
[1739423475496,0.00554129,2708.2,2707.9,0.73845]
[1739423475691,0.00554129,2708.2,2708.0,0.73841]
[1739423475891,0.00554129,2708.2,2707.9,3.21361429]
[1739423476698,0.00554129,2708.2,2708.0,0.73843]
[1739423476998,0.74395129,2708.2,2707.9,3.95207429]
[1739423477199,0.74395129,2708.2,2707.9,3.21361429]
[1739423477898,0.74395129,2708.2,2707.9,3.95208429]
[1739423479000,0.74395129,2708.2,2707.9,3.95207429]
[1739423480998,0.00554129,2708.2,2707.9,3.21361429]
[1739423481297,0.74393129,2708.2,2707.9,3.95207429]
[1739423482107,0.74393129,2708.2,2708.0,0.73843]
[1739423482303,0.00554129,2708.2,2707.9,3.21361429]
[1739423482699,0.73844,2708.0,2707.9,3.21361429]
[1739423483001,0.00554129,2708.2,2708.0,0.73843]
[1739423483002,0.74394129,2708.2,2708.0,0.73843]
[1739423483306,0.74394129,2708.2,2708.1,0.5762]
[1739423483699,0.00554129,2708.2,2707.9,3.21361429]
[1739423483894,0.73844,2708.0,2707.9,3.21361429]
[1739423484104,0.73847,2707.9,2707.8,1.691]
[1739423484702,0.73846,2708.0,2707.8,1.691]
[1739423485097,0.73846,2708.0,2707.8,2.42949]
[1739423485302,0.73846,2708.0,2707.8,1.691]
[1739423485502,0.73847,2707.9,2707.8,1.691]
[1739423486097,0.73841,2708.1,2707.8,2.42948]
[1739423486308,0.73841,2708.1,2707.9,0.73846]
[1739423486905,0.00554129,2708.2,2707.9,0.73846]
[1739423487203,0.73842,2708.1,2707.9,0.73846]
[1739423487406,0.00554129,2708.2,2707.8,2.42948]
[1739423487607,0.73845,2708.0,2707.8,1.691]
[1739423487810,0.73847,2707.9,2707.8,1.691]
[1739423488306,0.73845,2708.0,2707.8,2.42948]
[1739423488604,0.73845,2708.0,2707.8,1.691]
[1739423488801,0.00554129,2708.2,2707.8,1.691]
[1739423489001,0.73847,2707.9,2707.8,1.691]
[1739423489302,0.00554129,2708.2,2707.7,0.5762]
[1739423489508,0.00554129,2708.2,2707.6,3.7587]
[1739423489705,0.7385,2707.8,2707.6,4.49724]
[1739423490009,0.7385,2707.8,2707.6,0.5509]
[1739423490507,0.73848,2707.9,2707.7,0.73852]
[1739423490902,0.00554129,2708.2,2707.6,3.7587]
[1739423491103,0.00554129,2708.2,2707.8,3.21361429]
[1739423491298,0.00554129,2708.2,2708.1,0.73841]
[1739423491805,0.00554129,2708.2,2707.8,3.21361429]
[1739423492308,0.00554129,2708.2,2708.1,0.73841]
[1739423493505,0.00554129,2708.2,2708.1,3.95202429]
[1739423493713,0.56993639,2709.1,2708.1,3.21361429]
[1739423494008,0.73822,2708.8,2708.5,3.95190429]
[1739423494212,0.56993639,2709.1,2708.5,3.95190429]
[1739423494912,0.73827,2708.7,2708.5,3.21915558]
[1739423495911,0.00554129,2709.1,2708.5,3.95744558]
[1739423495912,0.73823,2708.8,2708.5,3.95744558]
[1739423496421,0.73823,2708.8,2708.5,3.21915558]
[1739423496614,0.73826,2708.7,2708.5,3.21915558]
[1739423496910,0.00554129,2709.1,2708.5,3.21915558]
[1739423497112,0.73828,2708.6,2708.5,3.21915558]
[1739423498511,0.73828,2708.6,2708.5,0.00554129]
[1739423500208,1.85095129,2709.1,2708.5,0.00554129]
[1739423500407,0.73828,2708.6,2708.5,0.00554129]
[1739423500919,0.73825,2708.7,2708.5,3.95744558]
[1739423501623,0.00554129,2709.1,2708.5,3.21915558]
[1739423502112,0.00554129,2709.1,2708.5,3.95743558]
[1739423502310,0.00554129,2709.1,2708.5,3.21915558]
[1739423502513,0.73823,2708.8,2708.6,0.73826]
[1739423503310,0.73823,2708.8,2708.5,3.21915558]
[1739423503311,0.7382,2708.9,2708.7,0.73823]
[1739423503511,0.73823,2708.8,2708.6,0.73826]
[1739423503713,0.00554129,2709.1,2708.5,3.21915558]
[1739423503909,0.00554129,2709.1,2708.7,0.73823]
[1739423504110,0.73821,2708.9,2708.7,0.73823]
[1739423504313,0.00554129,2709.1,2708.7,1.30723]
[1739423504614,0.73818,2709.0,2708.8,0.5529]
[1739423504814,0.73818,2709.0,2708.8,1.29112]
[1739423505010,0.00554129,2709.1,2708.8,0.5529]
[1739423505417,0.74369129,2709.1,2708.9,0.73819]
[1739423505812,0.00554129,2709.1,2708.9,0.73819]
[1739423506013,0.00554129,2709.1,2708.8,3.76651429]
[1739423506216,0.00554129,2709.1,2709.0,0.73817]
[1739423509320,3.94577,2709.8,2709.0,6.0]
[1739423509525,3.2078,2709.8,2709.6,3.95160429]
[1739423509717,3.2078,2709.8,2709.7,1.0756]
[1739423510024,3.2078,2709.8,2709.7,1.6171]
[1739423510414,0.73793,2709.9,2709.7,1.6171]
[1739423510620,0.00554129,2710.0,2709.7,1.6171]
[1739423510621,0.73795,2709.8,2709.7,1.6171]
[1739423511122,0.00554129,2710.0,2709.7,1.6171]
[1739423511322,0.73793,2709.9,2709.7,1.6171]
[1739423511925,0.00554129,2710.0,2709.7,1.6171]
[1739423512122,0.00554129,2710.0,2709.9,3.21361429]
[1739423512823,0.00554129,2710.0,2709.9,3.95153429]
[1739423513026,0.00554129,2710.0,2709.9,3.21361429]
[1739423513426,0.00554129,2710.0,2709.9,3.95153429]
[1739423514630,0.73775,2710.6,2709.9,3.21361429]
[1739423514919,0.73775,2710.6,2710.3,3.95142429]
[1739423515125,0.73773,2710.6,2710.4,1.1318]
[1739423515322,0.73773,2710.6,2710.4,1.6824]
[1739423515919,0.73776,2710.5,2710.4,1.6824]
[1739423516423,3.94552,2710.7,2710.4,2.42016]
[1739423516617,3.2078,2710.7,2710.4,1.6824]
[1739423516828,3.2078,2710.7,2710.6,0.73773]
[1739423517027,3.2078,2710.7,2710.6,3.95134429]
[1739423517228,3.2078,2710.7,2710.6,3.21361429]
[1739423517426,0.74323129,2710.8,2710.6,3.21361429]
[1739423517624,0.00554129,2710.8,2710.6,3.21361429]
[1739423518132,0.74322129,2710.8,2710.6,3.21361429]
[1739423518330,0.00554129,2710.8,2710.6,3.21361429]
[1739423518829,0.74322129,2710.8,2710.6,3.95134429]
[1739423519129,0.00554129,2710.8,2710.6,3.21361429]
[1739423519319,0.00554129,2710.8,2710.6,3.95133429]
[1739423519720,0.00554129,2710.8,2710.6,3.21361429]
[1739423519920,0.00554129,2710.8,2710.7,0.7377]
[1739423520121,0.00554129,2710.8,2710.6,3.21361429]
[1739423520617,0.00554129,2710.8,2710.6,3.95133429]
[1739423521126,0.00554129,2710.8,2710.7,0.7377]
[1739423522324,3.2078,2711.3,2711.1,0.73759]
[1739423522628,3.79,2711.8,2711.2,0.5669]
[1739423522832,3.79,2711.8,2711.4,3.95111429]
[1739423523032,0.73749,2711.5,2711.4,3.21361429]
[1739423523728,0.00554129,2711.7,2711.4,3.21361429]
[1739423523928,0.73749,2711.5,2711.4,3.21361429]
[1739423524135,0.00554129,2711.7,2711.4,3.21361429]
[1739423524827,0.00554129,2711.7,2711.5,0.73748]
[1739423525033,0.00554129,2711.7,2711.4,3.21361429]
[1739423525231,0.00554129,2711.7,2711.6,0.73746]
[1739423525531,0.73746,2711.6,2711.5,1.674]
[1739423525732,0.00554129,2711.7,2711.5,1.674]
[1739423525923,0.00554129,2711.7,2711.5,2.41147]
[1739423526120,0.00554129,2711.7,2711.5,1.674]
[1739423526326,0.00554129,2711.7,2711.5,2.41147]
[1739423526531,0.00554129,2711.7,2711.6,0.73746]
[1739423530129,0.73722,2712.5,2712.2,0.73728]
[1739423530327,0.73722,2712.5,2711.6,5.44426442]
[1739423530328,0.73724,2712.5,2712.1,3.95091429]
[1739423530527,0.73723,2712.5,2712.2,0.7373]
[1739423530729,0.73723,2712.5,2712.2,0.73727]
[1739423530929,3.7821,2712.7,2712.1,3.21361429]
[1739423531129,0.73723,2712.5,2712.1,3.95091429]
[1739423531329,0.73723,2712.5,2712.2,0.73729]
[1739423531631,0.73724,2712.4,2712.1,3.95091429]
[1739423532031,0.00553087,2712.6,2712.1,3.21361429]
[1739423532236,0.73724,2712.4,2712.1,3.95091429]
[1739423532735,0.00553087,2712.6,2712.1,3.21361429]
[1739423533033,0.73729,2712.3,2712.1,3.21361429]
[1739423533433,0.73725,2712.4,2712.1,3.95092429]
[1739423533637,0.73723,2712.5,2712.2,0.73728]
[1739423533936,0.73723,2712.5,2712.1,3.21361429]
[1739423533937,0.73728,2712.3,2712.1,3.21361429]
[1739423534330,0.7373,2712.2,2712.1,3.21361429]
[1739423534532,0.73726,2712.4,2712.1,3.95093429]
[1739423534733,0.73726,2712.4,2712.1,3.21361429]
[1739423534938,0.00553087,2712.6,2712.1,3.21361429]
[1739423535435,0.73732,2712.1,2712.0,0.00553087]
[1739423536135,0.57893087,2712.6,2712.0,0.00553087]
[1739423536336,3.2078,2712.4,2712.0,0.00553087]
[1739423536540,0.73732,2712.1,2712.0,0.00553087]
[1739423537043,1.84345,2712.0,2711.3,3.2078]
[1739423537237,3.2078,2711.8,2711.2,3.21361429]
[1739423537439,0.73744,2711.7,2711.4,0.7375]
[1739423537732,3.2078,2711.8,2711.7,0.73743]
[1739423537938,4.52212,2712.2,2711.5,8.09341429]
[1739423538126,4.52212,2712.2,2711.9,3.21361429]
[1739423538433,3.7848,2712.2,2711.9,3.21361429]
[1739423538635,3.9451,2712.2,2711.9,3.95097429]
[1739423539031,3.2078,2712.2,2711.9,3.21361429]
[1739423539236,0.73734,2712.1,2711.9,3.21361429]
[1739423539540,0.73735,2712.0,2711.9,3.21361429]
[1739423539929,3.2078,2712.2,2711.9,3.21361429]
[1739423540133,0.73734,2712.1,2711.9,3.21361429]
[1739423540438,0.73735,2712.0,2711.9,3.21361429]
[1739423540736,3.2078,2712.2,2711.6,4.37214516]
[1739423541236,0.73738,2711.9,2711.7,1.672]
[1739423541445,3.2078,2712.2,2711.7,1.672]
[1739423541740,3.2078,2712.2,2711.9,3.21361429]
[1739423542236,3.77133087,2712.6,2711.9,3.21361429]
[1739423542441,3.77133087,2712.6,2712.0,0.73735]
[1739423542635,3.77133087,2712.6,2712.1,40.8]
[1739423542937,3.77133087,2712.6,2711.8,3.2078]
[1739423543142,0.73735,2712.0,2711.8,3.2078]
[1739423543327,3.2078,2712.3,2711.8,3.94519]
[1739423543534,3.94509,2712.3,2712.0,0.73735]
[1739423543735,3.77133087,2712.6,2712.0,0.73735]
[1739423543935,0.73726,2712.4,2711.9,0.5424]
[1739423544143,0.73726,2712.4,2712.1,0.73732]
[1739423544337,0.73726,2712.4,2712.0,1.29114]
[1739423544640,3.77133087,2712.6,2712.1,0.73732]
[1739423544938,3.77133087,2712.6,2711.9,0.5424]
[1739423544939,0.73731,2712.2,2711.9,0.5424]
[1739423545442,3.77133087,2712.6,2711.9,1.678]
[1739423545643,0.73738,2711.9,2711.8,44.56741429]
[1739423545941,0.5495,2712.1,2711.6,1.68453087]
[1739423546135,0.5925,2712.0,2711.7,0.73743]
[1739423546331,1.32986,2712.0,2711.7,41.53741]
[1739423546531,1.32986,2712.0,2711.7,40.8]
[1739423546532,0.73736,2712.0,2711.7,40.8]
[1739423546739,0.73741,2711.8,2711.7,41.3873]
[1739423547542,0.73739,2711.9,2711.7,41.3873]
[1739423547842,0.73737,2712.0,2711.7,42.12473]
[1739423548237,0.73737,2712.0,2711.7,44.5951]
[1739423548436,0.73737,2712.0,2711.7,45.33252]
[1739423548736,0.5495,2712.1,2711.7,3.2078]
[1739423548943,0.73736,2712.0,2711.8,0.7374]
[1739423549441,0.5495,2712.1,2711.7,44.0078]
[1739423549641,0.5495,2712.1,2711.7,3.2078]
[1739423550243,0.5495,2712.1,2711.9,0.73736]
[1739423550434,0.5495,2712.1,2711.8,3.21361429]
[1739423550741,0.73741,2711.8,2711.7,3.2078]
[1739423552141,0.5495,2712.1,2711.8,0.7374]
[1739423552345,1.28684,2712.1,2711.8,0.7374]
[1739423552645,0.5495,2712.1,2711.9,0.73737]
[1739423552946,1.30753045,2712.2,2711.7,44.0078]
[1739423552947,0.57021045,2712.2,2711.8,3.21361429]
[1739423553242,3.94508,2712.3,2712.0,0.73733]
[1739423553443,3.94508,2712.3,2712.1,0.5745]
[1739423553832,3.2078,2712.3,2712.1,0.5745]
[1739423554237,0.73726,2712.4,2712.1,1.31181]
[1739423554443,4.35798529,2712.6,2712.1,0.5745]
[1739423554636,0.73723,2712.5,2712.2,0.73729]
[1739423554842,5.09519529,2712.6,2712.1,3.78811429]
[1739423555044,4.35798529,2712.6,2712.1,3.78811429]
[1739423555538,0.7373,2712.2,2712.1,3.21361429]
[1739423555743,4.35798529,2712.6,2711.8,3.21361429]
[1739423555951,0.73724,2712.5,2711.9,3.2078]
[1739423556134,0.73724,2712.5,2712.2,0.73729]
[1739423556340,1.30789442,2712.5,2712.2,0.73729]
[1739423556847,0.73724,2712.5,2712.2,0.73729]
[1739423557142,0.73729,2712.3,2712.0,0.73735]
[1739423557339,0.73725,2712.4,2712.1,0.73732]
[1739423557745,3.78733087,2712.6,2712.0,40.8]
[1739423557946,0.7373,2712.2,2712.0,40.8]
[1739423558541,0.57102982,2712.5,2711.9,3.94516]
[1739423558741,4.35836069,2712.6,2711.9,3.2078]
[1739423558942,0.73728,2712.3,2712.0,0.73733]
[1739423559139,4.35836069,2712.6,2711.9,3.2078]
[1739423559449,0.73725,2712.4,2712.1,3.95091429]
[1739423559651,4.35836069,2712.6,2712.1,3.21361429]
[1739423559951,0.7373,2712.2,2712.1,3.21361429]
[1739423560249,4.35836069,2712.6,2711.9,3.2078]
[1739423560446,4.35836069,2712.6,2711.9,3.94518]
[1739423560651,4.35836069,2712.6,2711.9,3.2078]
[1739423560845,0.73732,2712.2,2712.0,0.73734]
[1739423561051,4.35836069,2712.6,2711.9,3.2078]
[1739423561052,0.57102982,2712.5,2711.9,3.2078]
[1739423561247,0.57102982,2712.5,2712.1,0.73731]
[1739423561463,0.73726,2712.4,2712.2,0.73728]
[1739423561645,0.73726,2712.4,2712.2,0.5406]
[1739423562354,0.57102982,2712.5,2712.2,0.5406]
[1739423562647,0.73727,2712.3,2712.2,0.5406]
[1739423562854,0.73735,2712.0,2711.9,3.2078]
[1739423563447,0.5508,2712.2,2711.9,3.2078]
[1739423563657,1.28812,2712.2,2712.0,0.73735]
[1739423563843,1.28812,2712.2,2711.9,3.2078]
[1739423564049,0.7373,2712.2,2712.0,0.73734]
[1739423564249,0.73729,2712.3,2712.0,0.73733]
[1739423564450,0.73729,2712.3,2711.9,3.2078]
[1739423564856,0.73729,2712.3,2712.1,3.95092429]
[1739423565055,0.73727,2712.3,2712.1,3.95092429]
[1739423565256,0.57102982,2712.5,2712.1,3.95092429]
[1739423565459,0.73729,2712.3,2712.1,3.21361429]
[1739423565856,0.73726,2712.4,2712.1,3.95091429]
[1739423566056,0.73727,2712.3,2712.1,3.95091429]
[1739423566259,0.73727,2712.3,2712.2,0.5635]
[1739423566854,0.7373,2712.2,2712.1,3.21361429]
[1739423567159,0.57102982,2712.5,2712.1,3.21361429]
[1739423567549,0.73725,2712.4,2712.2,0.73728]
[1739423568262,4.32823087,2712.6,2712.1,3.21361429]
[1739423568559,0.73726,2712.4,2712.2,1.30489]
[1739423568757,4.32823087,2712.6,2712.2,0.5676]
[1739423568961,0.73725,2712.4,2712.3,1.1147]
[1739423569357,10.88861429,2712.4,2711.6,0.00553087]
[1739423569558,0.73743,2711.7,2711.6,0.00553087]
[1739423572565,0.73742,2711.8,2711.6,0.00553087]
[1739423574167,0.73738,2711.9,2711.6,0.74298087]
[1739423574461,0.73738,2711.9,2711.6,0.00553087]
[1739423574963,0.5712413,2712.0,2711.8,7.15880429]
[1739423575163,0.00549268,2712.3,2711.9,1.1345]
[1739423575357,0.73735,2712.0,2711.9,1.7029]
[1739423575562,0.00549268,2712.3,2711.9,1.7029]
[1739423575765,0.73735,2712.0,2711.9,1.1345]
[1739423576061,0.00549268,2712.3,2711.6,1.69553087]
[1739423576257,3.2078,2712.1,2711.6,0.00553087]
[1739423576458,0.5401,2712.0,2711.6,0.00553087]
[1739423576663,0.57605917,2712.3,2711.6,0.00553087]
[1739423576859,0.73739,2711.9,2711.6,1.84959087]
[1739423577065,0.73739,2711.9,2711.7,0.5753]
[1739423577363,0.73741,2711.8,2711.7,0.5753]
[1739423577764,0.73743,2711.7,2711.6,0.56643087]
[1739423578263,0.73739,2711.9,2711.6,0.56643087]
[1739423578462,3.77836649,2712.1,2711.6,0.56643087]
[1739423578867,3.77836649,2712.1,2711.6,1.30388087]
[1739423578868,0.73739,2711.9,2711.6,1.30388087]
[1739423579060,0.73739,2711.9,2711.6,1.84958087]
[1739423580468,0.57056649,2712.1,2711.6,1.11213087]
[1739423580667,0.73736,2712.0,2711.6,1.11213087]
[1739423580869,0.73733,2712.1,2711.6,1.11213087]
[1739423581069,0.73733,2712.1,2711.8,0.73739]
[1739423581369,0.73731,2712.2,2711.8,0.73739]
[1739423581567,0.54559268,2712.3,2711.6,1.11213087]
[1739423582074,0.7374,2711.9,2711.6,1.84958087]
[1739423582265,0.73737,2712.0,2711.7,0.73741]
[1739423582774,0.73737,2712.0,2711.8,0.7374]
[1739423582973,0.73733,2712.1,2711.8,0.7374]
[1739423583268,0.74276268,2712.3,2712.0,0.73732]
[1739423583470,0.74276268,2712.3,2712.1,1.1362]
[1739423584273,0.00549268,2712.3,2712.1,1.1362]
[1739423584475,0.7373,2712.2,2712.1,1.1362]
[1739423585371,0.00549268,2712.3,2712.2,0.7373]
[1739423585578,0.00549268,2712.3,2712.2,1.2998]
[1739423587069,0.00553087,2712.6,2712.5,0.73721]
[1739423587271,0.00553087,2712.6,2712.5,3.95082429]
[1739423589280,3.2078,2713.3,2712.5,3.21361429]
[1739423589469,3.2078,2713.3,2712.9,3.95070429]
[1739423589470,3.94481,2713.3,2712.9,3.95070429]
[1739423589777,3.2078,2713.3,2713.0,1.31106]
[1739423589971,1.32546,2713.5,2713.1,0.5624]
[1739423590169,0.5885,2713.5,2713.1,0.5624]
[1739423590373,0.73697,2713.5,2713.2,3.21361429]
[1739423590572,3.21333087,2713.6,2713.2,3.21361429]
[1739423591072,0.73698,2713.4,2713.2,3.21361429]